bitfinex/quotes_BTCUSD_20240701
["timestamp","ask_amount","ask_price","bid_price","bid_amount"]
[1719801419823,0.00884,63487.0,63483.0,0.13090982]
[1719801420039,0.00884,63487.0,63484.0,0.13090982]
[1719801420242,0.00884,63487.0,63482.0,0.2374]
[1719801420449,0.00884,63487.0,63483.0,0.13090988]
[1719801420663,0.00884,63487.0,63484.0,0.13090988]
[1719801420816,0.00884,63487.0,63482.0,0.2374]
[1719801421022,0.00484,63487.0,63483.0,0.13091071]
[1719801421210,0.00484,63487.0,63482.0,0.2374]
[1719801421417,0.00484,63487.0,63483.0,0.13091114]
[1719801421613,0.00484,63487.0,63482.0,0.2374]
[1719801421869,0.00084,63487.0,63482.0,0.2374]
[1719801422223,0.00484,63487.0,63482.0,0.2374]
[1719801422428,0.00084,63487.0,63482.0,0.2374]
[1719801422834,0.00884,63487.0,63482.0,0.2374]
[1719801424405,0.00484,63487.0,63482.0,0.2374]
[1719801424908,0.00484,63487.0,63484.0,0.01]
[1719801425145,0.00084,63487.0,63485.0,0.02]
[1719801425312,0.00084,63487.0,63486.0,0.01]
[1719801425514,0.00084,63487.0,63483.0,0.00315024]
[1719801425515,0.01484,63487.0,63483.0,0.00315024]
[1719801426019,0.02884,63487.0,63482.0,0.2374]
[1719801426256,0.01484,63487.0,63486.0,0.157515]
[1719801426486,0.01484,63487.0,63486.0,0.492545]
[1719801426487,0.00084,63487.0,63486.0,0.492545]
[1719801426721,0.01984,63487.0,63486.0,0.787575]
[1719801426951,0.00984,63487.0,63486.0,0.472545]
[1719801427169,0.00084,63487.0,63486.0,0.492545]
[1719801427697,0.00984,63487.0,63486.0,1.304175]
[1719801428078,0.00984,63487.0,63486.0,1.619205]
[1719801428288,0.00984,63487.0,63486.0,1.78154398]
[1719801428483,0.01984,63487.0,63486.0,1.98154398]
[1719801429044,0.00984,63487.0,63486.0,1.26494398]
[1719801429244,0.00984,63487.0,63480.0,0.2]
[1719801429245,0.00084,63487.0,63480.0,0.2]
[1719801429670,0.00484,63487.0,63480.0,0.357529]
[1719801430090,0.00084,63487.0,63480.0,0.357529]
[1719801430663,0.01484,63487.0,63481.0,0.157527]
[1719801430842,0.02784,63487.0,63481.0,0.157527]
[1719801431034,0.02784,63487.0,63480.0,0.2]
[1719801431439,0.02784,63487.0,63475.0,0.4675]
[1719801431576,0.5179,63485.0,63475.0,0.4675]
[1719801431782,0.68023898,63485.0,63475.0,0.4675]
[1719801432001,0.1,63484.0,63475.0,0.4675]
[1719801432517,0.16233898,63483.0,63475.0,0.4675]
[1719801432866,0.1,63482.0,63475.0,0.4675]
[1719801433434,0.1,63482.0,63473.0,0.2]
[1719801434405,0.114,63482.0,63473.0,0.2]
[1719801435799,0.1,63482.0,63473.0,0.2]
[1719801436007,0.128,63482.0,63473.0,0.2]
[1719801439082,0.29033898,63482.0,63473.0,0.2]
[1719801439210,0.18533898,63481.0,63473.0,0.2]
[1719801439433,0.1,63480.0,63473.0,0.2]
[1719801439638,0.26233898,63480.0,63473.0,0.2]
[1719801440592,0.27633898,63480.0,63473.0,0.2]
[1719801441445,0.28933898,63480.0,63473.0,0.2]
[1719801445941,0.127,63480.0,63473.0,0.2]
[1719801446130,0.027,63480.0,63473.0,0.641746]
[1719801446727,0.027,63480.0,63474.0,0.2141]
[1719801446926,0.027,63480.0,63473.0,0.4842]
[1719801446927,0.4977,63479.0,63473.0,0.2]
[1719801447353,0.1,63478.0,63473.0,0.2]
[1719801449462,0.111,63478.0,63473.0,0.2]
[1719801450284,0.121,63478.0,63473.0,0.2]
[1719801454234,0.111,63478.0,63473.0,0.2]
[1719801454613,0.125,63478.0,63473.0,0.2]
[1719801455238,0.114,63478.0,63473.0,0.2]
[1719801455620,0.128,63478.0,63473.0,0.2]
[1719801456001,0.114,63478.0,63473.0,0.2]
[1719801456654,0.128,63478.0,63473.0,0.2]
[1719801461150,0.028,63478.0,63474.0,0.2291]
[1719801461323,0.1,63477.0,63474.0,0.2291]
[1719801462383,0.014,63478.0,63474.0,0.2291]
[1719801462597,0.028,63478.0,63474.0,0.54733662]
[1719801462799,0.014,63478.0,63475.0,0.157541]
[1719801463002,0.014,63477.0,63475.0,0.157541]
[1719801464278,0.014,63478.0,63475.0,0.157541]
[1719801464844,0.01638416,63480.0,63475.0,0.157541]
[1719801465053,0.1,63489.0,63475.0,0.157541]
[1719801465251,0.014,63477.0,63475.0,0.157541]
[1719801465476,0.014,63477.0,63474.0,0.386644]
[1719801465677,0.033,63488.0,63474.0,0.386644]
[1719801466039,0.014,63478.0,63474.0,0.2291]
[1719801466253,0.014,63477.0,63474.0,0.2291]
[1719801466599,0.01,63485.0,63474.0,0.2291]
[1719801466805,0.04295454,63484.0,63474.0,0.2291]
[1719801467001,0.04295454,63483.0,63474.0,0.2291]
[1719801467206,0.03398907,63482.0,63474.0,0.2291]
[1719801467464,0.14150455,63487.0,63474.0,0.2291]
[1719801467465,0.014,63477.0,63474.0,0.2291]
[1719801467638,0.028,63477.0,63474.0,0.2291]
[1719801467842,0.014,63477.0,63474.0,0.2291]
[1719801468646,0.028,63477.0,63474.0,0.2291]
[1719801469238,0.014,63477.0,63473.0,0.2]
[1719801469680,0.014,63477.0,63473.0,0.357547]
[1719801470387,0.028,63477.0,63473.0,0.357547]
[1719801470544,0.014,63477.0,63473.0,0.357547]
[1719801470951,0.028,63477.0,63473.0,0.357547]
[1719801473673,0.028,63477.0,63474.0,0.3382384]
[1719801473886,0.028,63477.0,63476.0,0.0733]
[1719801474158,0.028,63477.0,63476.0,0.230839]
[1719801474612,0.014,63477.0,63476.0,0.230839]
[1719801474983,0.028,63477.0,63476.0,0.230839]
[1719801475181,0.014,63477.0,63476.0,0.230839]
[1719801475382,0.028,63477.0,63476.0,0.230839]
[1719801475583,0.014,63477.0,63476.0,0.230839]
[1719801475804,0.028,63477.0,63476.0,0.230839]
[1719801476240,0.014,63477.0,63476.0,0.230839]
[1719801476392,0.014,63477.0,63476.0,0.545918]
[1719801476610,0.028,63477.0,63476.0,0.545918]
[1719801480478,0.028,63477.0,63476.0,0.880997]
[1719801481028,0.028,63477.0,63476.0,0.860997]
[1719801481257,0.014,63477.0,63476.0,0.860997]
[1719801481454,0.028,63477.0,63476.0,0.880997]
[1719801481700,0.014,63477.0,63476.0,0.880997]
[1719801482115,0.016,63477.0,63476.0,0.880997]
[1719801482480,0.016,63477.0,63476.0,1.01190671]
[1719801482682,0.002,63477.0,63476.0,0.880997]
[1719801482890,0.002,63477.0,63476.0,1.01190601]
[1719801482891,0.016,63477.0,63476.0,1.01190601]
[1719801483061,0.016,63477.0,63476.0,1.32698501]
[1719801483468,0.002,63477.0,63476.0,1.48932399]
[1719801483670,0.004,63477.0,63476.0,1.48932399]
[1719801485035,0.004,63477.0,63476.0,1.98632399]
[1719801485230,0.004,63477.0,63476.0,2.23358874]
[1719801485520,0.004,63477.0,63476.0,1.98632399]
[1719801485897,0.004,63477.0,63476.0,1.98631109]
[1719801486239,0.004,63477.0,63476.0,1.98630987]
[1719801486438,0.004,63477.0,63476.0,2.03354903]
[1719801486643,0.004,63477.0,63476.0,1.98630987]
[1719801487260,0.004,63477.0,63476.0,2.03353996]
[1719801488901,0.004,63477.0,63476.0,2.54861896]
[1719801489101,0.004,63477.0,63476.0,2.70138887]
[1719801489727,0.002,63477.0,63476.0,2.70138887]
[1719801490143,0.003,63477.0,63476.0,2.50138887]
[1719801490342,0.001,63477.0,63476.0,2.70138887]
[1719801490824,0.002,63477.0,63476.0,2.50138887]
[1719801491267,0.002,63477.0,63476.0,1.89300987]
[1719801491463,0.002,63477.0,63476.0,0.787697]
[1719801491865,0.03037588,63477.0,63476.0,0.787697]
[1719801492438,0.02937588,63477.0,63476.0,0.787697]
[1719801492821,0.04337588,63477.0,63476.0,0.787697]
[1719801493225,0.02950359,63477.0,63476.0,0.787697]
[1719801493425,0.03550359,63477.0,63476.0,0.787697]
[1719801493714,0.04950359,63477.0,63476.0,0.787697]
[1719801494212,0.03550359,63477.0,63476.0,0.472618]
[1719801494385,0.04250359,63477.0,63476.0,0.472618]
[1719801494925,0.014,63477.0,63476.0,0.472618]
[1719801495125,0.014,63477.0,63476.0,0.471799]
[1719801495324,0.04251301,63477.0,63476.0,0.471799]
[1719801495640,0.04251301,63477.0,63476.0,0.15672]
[1719801496517,0.04251301,63477.0,63476.0,0.471799]
[1719801498146,0.04250737,63477.0,63476.0,0.471799]
[1719801498547,0.04250875,63477.0,63476.0,0.471799]
[1719801499721,0.04250875,63477.0,63476.0,0.491799]
[1719801499917,0.04250875,63477.0,63473.0,0.515093]
[1719801499918,0.04250875,63477.0,63473.0,0.2]
[1719801500123,0.02850875,63476.0,63474.0,0.0833]
[1719801500424,0.02850875,63476.0,63475.0,0.01]
[1719801500625,0.02850875,63476.0,63475.0,0.177541]
[1719801501214,0.007,63477.0,63476.0,0.157539]
[1719801501558,0.0285553,63477.0,63476.0,0.157539]
[1719801501979,0.0355553,63477.0,63476.0,0.157539]
[1719801502360,0.0285553,63477.0,63476.0,0.157539]
[1719801502891,0.0355553,63477.0,63476.0,0.157539]
[1719801503253,0.0355553,63477.0,63476.0,0.167539]
[1719801503457,0.0425553,63477.0,63476.0,0.157539]
[1719801503878,0.0425553,63477.0,63474.0,0.230842]
[1719801504078,0.01484,63477.0,63474.0,0.240842]
[1719801504283,0.02854276,63476.0,63474.0,0.240842]
[1719801504722,0.02854276,63476.0,63475.0,0.177542]
[1719801504923,0.00084,63477.0,63476.0,0.458139]
[1719801505123,0.00784,63477.0,63476.0,1.46463598]
[1719801505520,0.00084,63477.0,63476.0,1.46463598]
[1719801506126,0.00784,63477.0,63476.0,1.46463598]
[1719801506530,0.00084,63477.0,63476.0,1.59554226]
[1719801506725,0.01484,63477.0,63476.0,1.59554226]
[1719801507150,0.01484,63477.0,63476.0,1.91062126]
[1719801507305,0.01484,63477.0,63476.0,2.11062141]
[1719801507550,0.01484,63477.0,63476.0,1.91062141]
[1719801508146,0.01484,63477.0,63476.0,2.11062141]
[1719801508347,0.00784,63477.0,63476.0,1.91062141]
[1719801508547,0.00784,63477.0,63476.0,2.31062141]
[1719801509319,0.00084,63477.0,63476.0,2.35784497]
[1719801509448,0.00184,63477.0,63476.0,2.35784497]
[1719801509628,0.00184,63477.0,63476.0,2.15884497]
[1719801509837,0.00184,63477.0,63476.0,2.35784497]
[1719801510065,0.00184,63477.0,63476.0,2.35884497]
[1719801510269,0.00284,63477.0,63476.0,2.15884497]
[1719801510471,0.00284,63477.0,63476.0,2.23212966]
[1719801510821,0.00284,63477.0,63476.0,2.25401498]
[1719801511019,0.00284,63477.0,63476.0,2.43212677]
[1719801511572,0.00284,63477.0,63476.0,3.470815]
[1719801511956,0.00284,63477.0,63476.0,3.51803347]
[1719801512092,0.00284,63477.0,63476.0,3.48436446]
[1719801512288,0.00284,63477.0,63476.0,3.51799585]
[1719801512487,0.00084,63477.0,63476.0,3.3989873]
[1719801512945,0.00184,63477.0,63476.0,3.19679398]
[1719801513151,0.00184,63477.0,63476.0,2.40500421]
[1719801513351,0.00184,63477.0,63476.0,2.67830421]
[1719801513557,0.00184,63477.0,63476.0,2.43311237]
[1719801513558,0.00284,63477.0,63476.0,2.43311237]
[1719801513753,0.00284,63477.0,63476.0,2.38590904]
[1719801514765,0.00184,63477.0,63476.0,2.38590904]
[1719801515189,0.00284,63477.0,63476.0,2.39590904]
[1719801516577,0.00284,63477.0,63476.0,2.26501498]
[1719801516832,0.00284,63477.0,63476.0,2.39591124]
[1719801517384,0.00284,63477.0,63476.0,2.44312447]
[1719801519277,0.00284,63477.0,63476.0,2.44943247]
[1719801519795,0.00284,63477.0,63476.0,2.60221756]
[1719801519999,0.00284,63477.0,63476.0,2.64943746]
[1719801520395,0.00284,63477.0,63476.0,2.44943746]
[1719801521096,0.00284,63477.0,63476.0,2.64943746]
[1719801521295,0.00284,63477.0,63476.0,2.44943746]
[1719801522492,0.00284,63477.0,63476.0,1.11923856]
[1719801522693,0.00284,63477.0,63476.0,0.87115156]
[1719801522922,0.00284,63477.0,63476.0,0.74025698]
[1719801523437,0.00284,63477.0,63476.0,0.012]
[1719801523657,0.02065883,63477.0,63476.0,0.012]
[1719801523891,0.29005883,63477.0,63476.0,0.012]
[1719801524345,0.28905883,63477.0,63476.0,0.002]
[1719801524785,0.28905883,63477.0,63476.0,0.006]
[1719801525258,0.28905883,63477.0,63476.0,0.0753]
[1719801525497,0.28805883,63477.0,63476.0,0.0733]
[1719801525712,0.29505883,63477.0,63476.0,0.0733]
[1719801525929,0.29505883,63477.0,63476.0,0.0773]
[1719801525930,0.29517863,63477.0,63476.0,0.0773]
[1719801526149,0.28817863,63477.0,63476.0,0.0733]
[1719801526517,0.30617863,63477.0,63476.0,0.0743]
[1719801529154,0.30622396,63477.0,63476.0,0.0743]
[1719801530399,0.30622396,63477.0,63476.0,0.001]
[1719801532294,0.30625059,63477.0,63476.0,0.001]
[1719801535357,0.30624977,63477.0,63476.0,0.001]
[1719801535942,0.3062363,63477.0,63476.0,0.001]
[1719801538449,0.30623028,63477.0,63476.0,0.001]
[1719801539129,0.30623028,63477.0,63476.0,0.001924]
[1719801540948,0.30623118,63477.0,63476.0,0.001924]
[1719801541339,0.03683118,63477.0,63476.0,0.095224]
[1719801541544,0.03683118,63477.0,63476.0,0.88607136]
[1719801541545,0.01884,63477.0,63476.0,0.88607136]
[1719801541751,0.01884,63477.0,63476.0,1.198]
[1719801542156,0.01884,63477.0,63476.0,2.07563898]
[1719801542355,0.00984,63477.0,63476.0,2.20653543]
[1719801542785,0.00084,63477.0,63476.0,2.20553543]
[1719801543007,0.00284,63477.0,63476.0,2.20553543]
[1719801543762,0.00284,63477.0,63476.0,2.20753543]
[1719801543903,0.00084,63477.0,63476.0,2.07463898]
[1719801544131,0.00084,63477.0,63476.0,2.20553507]
[1719801544307,0.00984,63477.0,63476.0,2.20553507]
[1719801544897,0.00084,63477.0,63476.0,2.20553507]
[1719801545141,0.00184,63477.0,63476.0,2.01053507]
[1719801545462,0.00284,63477.0,63476.0,2.21853507]
[1719801545683,0.00184,63477.0,63476.0,2.21053507]
[1719801545880,0.00184,63477.0,63476.0,2.01853507]
[1719801546083,0.00284,63477.0,63476.0,2.01853507]
[1719801546282,0.00184,63477.0,63476.0,2.01353507]
[1719801546458,0.00184,63477.0,63476.0,2.21353507]
[1719801546704,0.00184,63477.0,63476.0,2.01353507]
[1719801546911,0.00184,63477.0,63476.0,2.21353507]
[1719801547305,0.00184,63477.0,63476.0,2.01353507]
[1719801547675,0.00184,63477.0,63476.0,1.94423507]
[1719801547676,0.00284,63477.0,63476.0,1.94423507]
[1719801547865,0.00284,63477.0,63476.0,2.01753507]
[1719801548728,0.00284,63477.0,63476.0,2.21753507]
[1719801548980,0.00284,63477.0,63476.0,2.01753507]
[1719801549188,0.00284,63477.0,63476.0,1.94423507]
[1719801549526,0.00284,63477.0,63476.0,2.01753507]
[1719801550079,0.00284,63477.0,63476.0,1.88663898]
[1719801550293,0.00284,63477.0,63476.0,2.01753565]
[1719801550497,0.00284,63477.0,63476.0,2.21753565]
[1719801551649,0.00284,63477.0,63476.0,2.73261465]
[1719801551835,0.00284,63477.0,63476.0,2.8033974]
[1719801552043,0.00284,63477.0,63476.0,2.73261465]
[1719801552509,0.00284,63477.0,63476.0,2.80338268]
[1719801553116,0.00284,63477.0,63476.0,2.80336994]
[1719801554485,0.00284,63477.0,63476.0,2.73260215]
[1719801556326,0.00284,63477.0,63476.0,2.73260237]
[1719801558186,0.00084,63487.0,63486.0,1.477515]
[1719801558382,0.00084,63487.0,63486.0,3.00861359]
[1719801558583,0.5054,63509.0,63486.0,3.00861359]
[1719801558584,0.5054,63509.0,63508.0,0.67238]
[1719801558783,0.5054,63509.0,63508.0,1.0606]
[1719801559159,0.5054,63509.0,63508.0,1.0806]
[1719801559741,0.5054,63509.0,63508.0,1.0606]
[1719801559971,0.32024904,63529.0,63508.0,1.0606]
[1719801559972,0.04694904,63530.0,63515.0,0.2]
[1719801560173,0.4969,63524.0,63520.0,0.0733]
[1719801560349,0.01764822,63523.0,63520.0,0.0733]
[1719801560768,0.01764822,63523.0,63520.0,0.230729]
[1719801560968,0.01764822,63523.0,63520.0,0.230728]
[1719801561172,0.01764822,63523.0,63520.0,0.0733]
[1719801561376,0.01764822,63523.0,63522.0,0.472276]
[1719801561577,0.11764822,63523.0,63522.0,0.472276]
[1719801561779,0.1,63523.0,63522.0,0.472276]
[1719801562359,0.1,63523.0,63518.0,0.314866]
[1719801562561,0.115,63523.0,63521.0,0.157428]
[1719801562762,0.109,63523.0,63521.0,0.157428]
[1719801563315,0.115,63523.0,63521.0,0.157428]
[1719801563755,0.106,63523.0,63521.0,0.157428]
[1719801564509,0.106,63523.0,63519.0,0.157431]
[1719801564760,0.106,63523.0,63521.0,0.001]
[1719801565107,0.106,63523.0,63522.0,0.001]
[1719801565609,0.1,63523.0,63520.0,0.15743]
[1719801566012,0.1,63523.0,63521.0,0.001]
[1719801566269,0.1,63523.0,63521.0,0.158428]
[1719801566471,0.1,63523.0,63522.0,0.001]
[1719801566819,0.1,63523.0,63522.0,0.002]
[1719801567748,0.1,63523.0,63522.0,0.001]
[1719801567983,0.1,63523.0,63522.0,0.231725]
[1719801568167,0.107,63523.0,63522.0,0.545576]
[1719801568521,0.117,63523.0,63522.0,0.545576]
[1719801568704,0.124,63523.0,63522.0,0.546576]
[1719801568905,0.1,63523.0,63522.0,0.545576]
[1719801569311,0.114,63523.0,63522.0,0.547576]
[1719801571146,0.11484,63523.0,63522.0,0.547576]
[1719801571392,0.11484,63523.0,63522.0,1.082427]
[1719801571393,0.01484,63523.0,63522.0,1.082427]
[1719801572162,0.01484,63523.0,63522.0,1.313827]
[1719801572509,0.01484,63523.0,63522.0,1.55961698]
[1719801573685,0.01484,63523.0,63522.0,1.77881698]
[1719801573935,0.01484,63523.0,63522.0,2.39992453]
[1719801574492,0.00784,63523.0,63522.0,2.39892453]
[1719801575065,0.01484,63523.0,63522.0,2.33072841]
[1719801575257,0.00784,63523.0,63522.0,1.28027178]
[1719801575436,0.00784,63523.0,63522.0,1.24276598]
[1719801575636,0.00784,63523.0,63522.0,1.22576598]
[1719801576060,0.00784,63523.0,63522.0,1.24376598]
[1719801576263,0.00784,63523.0,63522.0,1.22376598]
[1719801577387,0.00784,63523.0,63522.0,0.83561498]
[1719801577540,0.00984,63523.0,63522.0,0.90891498]
[1719801577740,0.00984,63523.0,63522.0,0.83561498]
[1719801578001,0.59444,63523.0,63522.0,0.83561498]
[1719801578302,0.58744,63523.0,63522.0,0.83461498]
[1719801578503,0.58744,63523.0,63522.0,0.83661498]
[1719801578703,0.59044,63523.0,63522.0,0.83661498]
[1719801578916,0.59044,63523.0,63522.0,0.83461498]
[1719801579124,0.59244,63523.0,63522.0,1.14946598]
[1719801579668,0.59244,63523.0,63522.0,1.16946598]
[1719801580092,0.59244,63523.0,63522.0,1.14946598]
[1719801581607,0.59244,63523.0,63522.0,1.16946598]
[1719801582612,0.59044,63523.0,63522.0,1.16946598]
[1719801584297,0.59244,63523.0,63522.0,1.16946598]
[1719801584467,0.59044,63523.0,63522.0,1.16946598]
[1719801585440,0.59244,63523.0,63522.0,1.16946598]
[1719801585910,0.58744,63523.0,63522.0,1.16946598]
[1719801586325,0.58744,63523.0,63522.0,1.17046598]
[1719801587300,0.58744,63523.0,63522.0,1.37246598]
[1719801588241,0.58744,63523.0,63522.0,1.68731698]
[1719801588501,0.58744,63523.0,63522.0,1.90461698]
[1719801588696,0.58744,63523.0,63522.0,1.96765198]
[1719801591187,0.58744,63523.0,63522.0,2.23085198]
[1719801591781,0.58744,63523.0,63522.0,2.74570298]
[1719801592609,0.58744,63523.0,63522.0,2.94570298]
[1719801593030,0.58744,63523.0,63522.0,2.94470298]
[1719801593438,0.58744,63523.0,63522.0,3.27167769]
[1719801593646,0.58744,63523.0,63522.0,3.31862891]
[1719801593855,0.58744,63523.0,63522.0,3.27167769]
[1719801594054,0.58744,63523.0,63522.0,3.26967769]
[1719801594232,0.58744,63523.0,63522.0,2.9896542]
[1719801594431,0.58744,63523.0,63522.0,2.9906542]
[1719801594858,0.58744,63523.0,63522.0,2.9896542]
[1719801595055,0.58744,63523.0,63522.0,2.9986542]
[1719801595262,0.58744,63523.0,63522.0,3.0076542]
[1719801596030,0.58744,63523.0,63522.0,2.8076542]
[1719801596230,0.58744,63523.0,63522.0,2.96070298]
[1719801596421,0.58744,63523.0,63522.0,3.00768425]
[1719801596802,0.58744,63523.0,63522.0,3.00768421]
[1719801597209,0.58744,63523.0,63522.0,2.96070298]
[1719801597415,0.58744,63523.0,63522.0,3.0076976]
[1719801597960,0.58744,63523.0,63522.0,3.0808976]
[1719801598110,0.58744,63523.0,63522.0,3.03390298]
[1719801598435,0.58744,63523.0,63522.0,3.08090746]
[1719801598612,0.58744,63523.0,63522.0,3.03390298]
[1719801599227,0.58744,63523.0,63522.0,3.10439747]
[1719801599391,0.58744,63523.0,63522.0,3.03390298]
[1719801600228,0.58744,63523.0,63522.0,2.90442845]
[1719801600429,0.58744,63523.0,63522.0,3.10442845]
[1719801601083,0.58744,63523.0,63522.0,3.09542845]
[1719801601285,0.58844,63523.0,63522.0,3.02490298]
[1719801601578,0.58844,63523.0,63522.0,3.10847951]
[1719801601757,0.58744,63523.0,63522.0,3.02890298]
[1719801602125,0.58844,63523.0,63522.0,3.13593694]
[1719801602330,0.58844,63523.0,63522.0,3.13605036]
[1719801602541,0.58844,63523.0,63522.0,3.33223602]
[1719801602732,0.01,63535.0,63534.0,1.521772]
[1719801602992,0.01,63535.0,63534.0,1.75731098]
[1719801604067,0.01,63535.0,63534.0,1.80438313]
[1719801604380,0.01,63535.0,63534.0,1.75731098]
[1719801604586,0.01,63535.0,63534.0,2.46827091]
[1719801604790,0.01,63535.0,63534.0,2.53887913]
[1719801604988,0.01,63535.0,63534.0,2.46827091]
[1719801605451,0.01,63535.0,63534.0,2.27210298]
[1719801605600,0.01,63535.0,63534.0,2.46825997]
[1719801605976,0.01,63535.0,63534.0,2.58603831]
[1719801607171,0.01,63535.0,63534.0,2.46825997]
[1719801607580,0.01,63535.0,63534.0,2.47725997]
[1719801607785,0.01,63535.0,63534.0,2.48225997]
[1719801608208,0.01,63535.0,63534.0,2.59044298]
[1719801608411,0.01,63535.0,63534.0,2.30010298]
[1719801608669,0.01,63535.0,63534.0,2.59043209]
[1719801608847,0.01,63535.0,63534.0,2.49624908]
[1719801609040,0.01,63535.0,63534.0,2.59043209]
[1719801609454,0.01,63535.0,63534.0,2.85833209]
[1719801609829,0.01,63535.0,63534.0,3.19134908]
[1719801610197,0.01,63535.0,63534.0,3.69134908]
[1719801610370,0.01,63535.0,63534.0,4.35602858]
[1719801611462,0.01,63535.0,63534.0,4.35600191]
[1719801611813,0.01,63535.0,63534.0,4.3560019]
[1719801612014,0.01,63535.0,63534.0,4.3420019]
[1719801612416,0.01,63535.0,63534.0,4.3430019]
[1719801612617,0.01,63535.0,63534.0,4.3290019]
[1719801613232,0.011,63535.0,63534.0,4.3300019]
[1719801613808,0.01,63535.0,63534.0,4.0021144]
[1719801614040,0.01,63535.0,63534.0,3.9289144]
[1719801614252,0.011,63535.0,63534.0,4.12074568]
[1719801614478,0.011,63535.0,63534.0,4.1207325]
[1719801615116,0.011,63535.0,63534.0,3.92460716]
[1719801615360,0.011,63535.0,63534.0,3.80699498]
[1719801615548,0.011,63535.0,63534.0,4.00312032]
[1719801616174,0.011,63535.0,63534.0,3.90108726]
[1719801617627,0.011,63535.0,63534.0,3.90107378]
[1719801618035,0.011,63535.0,63534.0,3.90107306]
[1719801618211,0.011,63535.0,63534.0,3.80699498]
[1719801618838,0.011,63535.0,63534.0,4.13386782]
[1719801619035,0.011,63535.0,63534.0,4.35146632]
[1719801619257,0.011,63535.0,63534.0,4.82364632]
[1719801620230,0.011,63535.0,63534.0,4.90217446]
[1719801620443,0.00084,63537.0,63536.0,2.860601]
[1719801620645,0.00084,63537.0,63536.0,4.03902462]
[1719801621069,0.00084,63537.0,63536.0,4.0390245]
[1719801621929,0.00084,63537.0,63536.0,4.1132245]
[1719801622078,0.00084,63537.0,63536.0,4.01918282]
[1719801622293,0.00084,63537.0,63536.0,4.30933842]
[1719801622491,0.00842,63542.0,63541.0,1.801]
[1719801622696,0.00842,63542.0,63541.0,3.55360074]
[1719801622945,0.00842,63542.0,63541.0,4.59188799]
[1719801623080,0.00842,63542.0,63541.0,4.61651482]
[1719801623575,0.00842,63542.0,63541.0,4.81262874]
[1719801623780,0.00842,63542.0,63541.0,4.81361495]
[1719801623971,0.00842,63542.0,63541.0,4.81361358]
[1719801624495,0.00842,63542.0,63541.0,5.12837058]
[1719801624695,0.00842,63551.0,63543.0,2.808708]
[1719801624897,0.00842,63551.0,63543.0,4.16233858]
[1719801625100,0.00842,63551.0,63543.0,4.27984602]
[1719801625313,0.00842,63551.0,63550.0,3.130916]
[1719801625520,0.00842,63551.0,63550.0,4.38621308]
[1719801625832,0.00842,63551.0,63550.0,4.33922498]
[1719801626034,0.00842,63551.0,63550.0,4.86211991]
[1719801626233,0.00842,63551.0,63550.0,4.95606363]
[1719801626884,0.00842,63587.0,63550.0,4.95606363]
[1719801626885,0.4781,63569.0,63551.0,2.821088]
[1719801627087,0.4781,63569.0,63551.0,4.19532507]
[1719801627633,0.22073,63575.0,63570.0,1.521145]
[1719801627840,0.22073,63575.0,63570.0,2.15540398]
[1719801627841,0.48811044,63574.0,63570.0,2.15540398]
[1719801628044,0.22073,63575.0,63570.0,2.15540398]
[1719801628245,0.22073,63575.0,63570.0,2.47001698]
[1719801628687,0.22073,63575.0,63570.0,2.67001698]
[1719801628898,0.22073,63575.0,63570.0,2.68301698]
[1719801629735,0.22073,63575.0,63570.0,2.49701698]
[1719801629936,0.22073,63575.0,63570.0,2.36510398]
[1719801630137,0.22073,63575.0,63570.0,2.33810398]
[1719801630564,0.22073,63575.0,63570.0,2.36510398]
[1719801630754,0.22073,63575.0,63570.0,2.35210398]
[1719801631099,0.22073,63575.0,63570.0,2.36510398]
[1719801631301,0.22073,63575.0,63570.0,2.35210398]
[1719801631709,0.22073,63575.0,63570.0,2.36610398]
[1719801632107,0.22073,63575.0,63570.0,2.35210398]
[1719801632453,0.22073,63575.0,63570.0,2.36610398]
[1719801632873,0.22073,63575.0,63570.0,2.35210398]
[1719801633077,0.22073,63575.0,63570.0,2.36610398]
[1719801637179,0.22073,63575.0,63570.0,2.56610398]
[1719801637389,0.22073,63575.0,63570.0,2.62908698]
[1719801637525,0.22073,63575.0,63570.0,2.42908698]
[1719801637730,0.00843,63575.0,63570.0,2.42908698]
[1719801637922,0.00843,63575.0,63570.0,2.94369998]
[1719801638139,0.00843,63575.0,63570.0,3.16274204]
[1719801638515,0.00843,63575.0,63570.0,3.65564204]
[1719801638729,0.00843,63575.0,63570.0,4.35564204]
[1719801638944,0.00843,63575.0,63570.0,4.81715329]
[1719801639165,0.00843,63575.0,63570.0,4.45564204]
[1719801639370,0.00843,63575.0,63570.0,4.25959998]
[1719801639524,0.00843,63575.0,63570.0,4.77023025]
[1719801639727,0.00843,63575.0,63570.0,5.19070433]
[1719801639923,0.00843,63575.0,63570.0,5.11432631]
[1719801640127,0.00843,63575.0,63570.0,5.23157194]
[1719801640329,0.00843,63575.0,63570.0,5.21757194]
[1719801640534,0.00843,63575.0,63570.0,4.77364873]
[1719801640904,0.00843,63575.0,63570.0,5.10131919]
[1719801641112,0.00843,63575.0,63570.0,4.91761919]
[1719801641315,0.00843,63575.0,63570.0,5.08631919]
[1719801641432,0.00843,63575.0,63570.0,5.08731919]
[1719801641650,0.00843,63575.0,63574.0,2.430267]
[1719801641857,0.00843,63575.0,63574.0,3.93903297]
[1719801642061,0.00843,63575.0,63574.0,4.26569081]
[1719801642260,0.00843,63576.0,63575.0,2.350239]
[1719801642463,0.00843,63576.0,63575.0,3.48614401]
[1719801642680,0.00843,63576.0,63575.0,3.55642113]
[1719801642885,0.00843,63576.0,63575.0,3.29015798]
[1719801643087,0.00843,63576.0,63575.0,3.48615801]
[1719801643498,0.00843,63576.0,63575.0,3.04586901]